[Event "FIDE World School-ch O-17 2025"]
[Site "Vrnjacka Banja"]
[Date "2025.03.24"]
[Round "5.1"]
[White "Yildiz, Egehan"]
[Black "Bogdanov, Artyom"]
[Result "1/2-1/2"]
[Annotator "TA"]
[ECO "A07"]
[WhiteElo "2204"]
[BlackElo "2373"]
[PlyCount "106"]
[EventDate "2025.03.19"]
[EventType "swiss"]
[EventCountry "SRB"]
[SourceTitle "playchess.com"]
[Source "ChessBase"]
[SourceQuality "1"]
[TimeControl "5400+30"]

{[%evp 9,106,14,66,0,0,0,21,23,72,0,0,0,67,0,0,0,90,29,68,41,44,43,39,34,46,36,44,39,43,47,47,31,20,0,49,21,45,16,20,17,21,20,30,25,36,38,43,33,25,33,115,91,113,107,123,126,238,225,218,81,79,85,82,68,68,68,84,68,68,68,98,101,98,100,98,5,5,0,0,0,0,0,33,15,8,9,12,8,8,8,8,0,0,0,0,0,0,0,0]} 1. Nf3 {[%emt 0:00:32]} Nf6 {[%emt 0:01:00]} 2. g3 {[%emt 0:00:22]} d5 {[%emt 0:02:58]} 3. Bg2 {[%emt 0:00:18]} c6 {[%emt 0:03:05]} 4. O-O {[%emt 0:00:12]} h6 {[%emt 0:03:31]} 5. c4 {[%emt 0:09:57]} dxc4 {[%emt 0:14:56]} (5... Bf5 $11) 6. a4 {[%emt 0:09:29] A07: Réti Opening: New York and Capablanca Systems.} (6. Qc2 $14) 6... Be6 $11 {[%emt 0:08:37]} 7. Na3 {[%emt 0:23:31]} g6 {[%emt 0:07:52]} 8. Qc2 {[%emt 0:03:21][%mdl 1024] White has compensation.} Qd5 {[%emt 0:01:26]} (8... Bg7 $11) 9. Nh4 $146 {[%emt 0:14:01]} (9. Ne1 Qf5 10. e4 Qc5 11. Nd3 Qd4 12. Nf4 Bg4 13. Qxc4 Qxc4 14. Nxc4 g5 15. f3 gxf4 16. fxg4 fxg3 17. h3 {½-½ Bondarenko,V (2325)-Denishev,M (2028) Vladimir op-B 2009 (6)}) 9... Qd4 {[%emt 0:09:28]} 10. Nf3 {[%emt 0:01:52] White sacrificed a pawn} Qd5 {[%emt 0:00:32]} 11. Nh4 {[%emt 0:00:50]} (11. h4 $14) 11... Qd4 $1 {[%emt 0:12:12]} 12. Nf3 {[%emt 0:04:52]} Qg4 {[%emt 0:04:02]} (12... Qd5 $1 $11 {keeps the balance.}) 13. h3 {[%emt 0:07:08]} (13. Ne5 $16 Qxe2 14. Naxc4) 13... Qf5 {[%emt 0:06:21]} 14. Qxf5 {[%emt 0:01:36]} Bxf5 {[%emt 0:03:00]} 15. Nxc4 {[%emt 0:00:14]} Bg7 {[%emt 0:00:53]} 16. d3 {[%emt 0:01:14]} O-O {[%emt 0:03:07]} 17. Bd2 {[%emt 0:02:17]} Be6 {[%emt 0:01:55]} 18. Rfc1 {[%emt 0:00:39]} Bd5 {[%emt 0:01:42]} 19. Rab1 {[%emt 0:03:42]} Rc8 {[%emt 0:04:01]} 20. Bb4 {[%emt 0:00:44]} c5 {[%emt 0:03:11]} 21. Ba3 {[%emt 0:00:25]} Nbd7 {[%emt 0:02:15]} (21... Na6 $11) 22. Ne3 {[%emt 0:01:19]} (22. b4 $5) 22... Bc6 {[%emt 0:02:51]} 23. b3 {[%emt 0:02:44]} (23. Bxc5 Bxf3 (23... Bxa4 24. Bxe7 Bc6 25. Nd2 $16) 24. Bxe7 Bc6 (24... Bxe2 $2 25. Re1 $19) 25. Bxc6 bxc6 $17 (25... Rxc6 26. Rxc6 bxc6 27. Rc1 $17)) 23... b6 {[%emt 0:01:02]} 24. Nd2 {[%emt 0:02:38][%cal Bf3d2,Bd2e4,Be4d6][%mdl 32]} Bxg2 {[%emt 0:00:34]} 25. Kxg2 {[%emt 0:00:01]} Ne5 {[%emt 0:00:45]} 26. b4 {[%emt 0:03:07]} cxb4 {[%emt 0:00:24]} 27. Bxb4 {[%emt 0:00:01]} (27. Rxc8+ Rxc8 28. Bxb4 e6 $16) 27... e6 {[%emt 0:00:15]} 28. Bc3 {[%emt 0:01:02]} Nfd7 {[%emt 0:00:48][%cal Oe5d3]} 29. Ne4 {[%emt 0:01:44]} f5 {[%emt 0:01:15]} ({Black should play} 29... g5 $14) 30. Nd6 $16 {[%emt 0:01:13][%cal Od3d4] [#]} Rc6 {[%emt 0:00:43]} 31. Nb5 {[%emt 0:00:40]} Rcc8 {[%emt 0:00:46]} 32. f4 {[%emt 0:01:00]} Nf7 {[%emt 0:00:31]} (32... Nc6 $16 33. Bxg7 Kxg7) 33. Bxg7 $18 {[%emt 0:00:33]} Kxg7 {[%emt 0:00:15]} 34. Rxc8 {[%emt 0:04:12]} (34. Nc7 $18 {is more deadly.} Rab8 35. Nxe6+ Kh8 36. Kf2) 34... Rxc8 $16 {[%emt 0:00:11]} 35. Nxa7 {[%emt 0:00:00]} Ra8 {[%emt 0:01:36]} 36. Nb5 {[%emt 0:00:00] and Nc7 should not be overlooked} Rxa4 {[%emt 0:00:30]} 37. Nc4 {[%emt 0:00:00]} Kf6 {[%emt 0:00:00]} 38. Nd4 {[%emt 0:00:09]} Ra6 {[%emt 0:00:27]} 39. Rb5 {[%emt 0:00:31]} Ke7 {[%emt 0:00:27]} 40. Nc6+ {[%emt 0:00:36]} Ke8 {[%emt 0:00:26]} 41. Kf3 {[%emt 0:00:32] White is much more active.} g5 {[%emt 0:00:23]} 42. e4 {[%emt 0:01:01]} ({White should try} 42. Kg2 $16) 42... fxe4+ $1 $11 {[%emt 0:00:22]} 43. dxe4 {[%emt 0:00:05]} Ra4 {[%emt 0:00:46]} 44. Nb4 {[%emt 0:00:51]} gxf4 {[%emt 0:00:25]} 45. gxf4 {[%emt 0:00:05][%cal Oe4e5]} Ra8 {[%emt 0:00:12]} 46. e5 {[%emt 0:01:18][%cal Ob4c2]} ({Reject} 46. Nxb6 Ra3+ 47. Kg2 Nd6 $17) 46... Rc8 {[%emt 0:00:25] The position is equal.} 47. Ne3 {[%emt 0:00:25]} Rc3 {[%emt 0:00:31]} 48. Na2 {[%emt 0:00:31]} Ra3 {[%emt 0:00:25]} 49. Nc1 {[%emt 0:00:14]} Nd8 {[%emt 0:00:30]} 50. Ne2 {[%emt 0:00:21]} Nc6 {[%emt 0:00:11]} 51. Rb1 {[%emt 0:00:14]} Kf7 {[%emt 0:00:32]} 52. Kf2 {[%emt 0:00:18]} Ra2 {[%emt 0:00:20]} 53. Kf3 {[%emt 0:00:40]} Ra3 {[%emt 0:02:08] Weighted Error Value: White=0.17 (very precise) /Black=0.17 (very precise)   Mistake:       	White=4     	Black=5      Inaccurate:     	White=3     	Black=3      OK:         	White=17    	Black=19     Best:        	White=3     	Black=2      Strong:       	---       	Black=2} 1/2-1/2

[Event "FIDE World School-ch O-17 2025"]
[Site "Vrnjacka Banja"]
[Date "2025.03.24"]
[Round "5.2"]
[White "Elmirzaev, Khondamir"]
[Black "Topuz, Mirac Melih"]
[Result "1/2-1/2"]
[Annotator "TA"]
[ECO "A87"]
[WhiteElo "2036"]
[BlackElo "2113"]
[PlyCount "130"]
[EventDate "2025.03.19"]
[EventType "swiss"]
[EventCountry "SRB"]
[SourceTitle "playchess.com"]
[Source "ChessBase"]
[SourceQuality "1"]
[TimeControl "5400+30"]

{[%evp 13,130,24,53,12,29,3,46,41,68,53,77,67,82,36,44,40,26,44,56,30,75,71,73,19,34,0,0,-5,16,0,14,0,-9,-29,-33,-29,-14,-14,-14,-14,0,-21,-21,-14,0,0,0,0,0,-39,0,-186,-198,-205,-193,-230,-223,-252,-244,-247,-114,-188,-167,-175,-176,-154,0,-1552,-1413,-1303,0,0,0,0,0,-18,-18,-34,-35,-35,-39,-18,-18,-21,-22,-22,-22,-23,-22,-62,0,0,0,0,0,0,0,0,0,-2571,8,8,8,8,8,8,8,8,8,8,8,8,8,8,8,8,8,8,8]} 1. d4 {[%emt 0:00:02]} f5 {[%emt 0:00:07]} 2. g3 {[%emt 0:00:33]} Nf6 {[%emt 0:00:07]} 3. Bg2 {[%emt 0:00:05]} g6 {[%emt 0:00:03]} 4. Nf3 {[%emt 0:00:33]} Bg7 {[%emt 0:00:07]} 5. O-O {[%emt 0:00:06]} O-O {[%emt 0:00:05]} 6. c4 {[%emt 0:00:15]} d6 {[%emt 0:00:01]} 7. Nc3 {[%emt 0:00:41]} Qe8 {[%emt 0:00:01]} 8. Rb1 {[%emt 0:02:15] A87: Dutch Defence: Leningrad System: 5 Nf3.} a5 {[%emt 0:01:39]} 9. b3 {[%emt 0:02:44]} c6 {[%emt 0:14:16]} 10. Bb2 $146 {[%emt 0:00:57] White is slightly better.} (10. d5 Na6 11. Na4 Ne4 12. Bb2 e5 13. dxe6 Bxe6 14. Bxg7 Kxg7 15. Nc3 Nac5 16. Qd4+ Kg8 {1-0 Mulyar,M (2366)-Shamatava,A (2155) Continental op 51st 2021 (3)}) 10... h6 {[%emt 0:03:40]} 11. Re1 {[%emt 0:03:33]} g5 {[%emt 0:05:13]} 12. d5 {[%emt 0:04:43]} c5 {[%emt 0:17:41]} 13. e4 {[%emt 0:16:43]} ({Better is} 13. e3 $16) 13... fxe4 $14 {[%emt 0:10:08]} 14. Nd2 {[%emt 0:00:09][%cal Oc3b5]} e3 {[%emt 0:02:57]} 15. Rxe3 {[%emt 0:09:40]} Ng4 $1 {[%emt 0:05:44][%cal Of8f2]} 16. Rf3 {[%emt 0:05:03]} Ne5 {[%emt 0:00:37]} 17. Rxf8+ {[%emt 0:00:35]} Qxf8 {[%emt 0:00:03]} 18. Nce4 {[%emt 0:14:36]} (18. Be4 $16) 18... Bf5 {[%emt 0:03:39]} 19. Qe2 {[%emt 0:01:20]} Nbd7 {[%emt 0:00:54]} 20. a4 {[%emt 0:01:13]} Qf7 {[%emt 0:00:54]} 21. Rf1 {[%emt 0:05:20]} Rf8 {[%emt 0:01:56]} 22. Kh1 {[%emt 0:00:48]} g4 {[%emt 0:04:05]} 23. Bc3 {[%emt 0:01:15]} Qh5 {[%emt 0:02:24][%cal Oe5f3]} 24. h4 {[%emt 0:03:55]} b6 {[%emt 0:04:03]} 25. Qe3 {[%emt 0:03:13]} Bh8 {[%emt 0:03:50]} 26. Re1 {[%emt 0:04:06]} Bg7 {[%emt 0:01:30]} 27. Kg1 {[%emt 0:03:34]} Rf7 {[%emt 0:02:50]} 28. Ba1 {[%emt 0:02:52]} Ng6 {[%emt 0:02:38]} 29. Bxg7 {[%emt 0:00:37]} Kxg7 {[%emt 0:00:06]} 30. Nc3 {[%emt 0:03:47]} Nde5 {[%emt 0:00:12]} 31. Ne2 {[%emt 0:05:10]} Bd7 {[%emt 0:03:11]} 32. Bh1 {[%emt 0:01:09]} (32. Be4 $11) 32... Nf3+ $1 $19 {[%emt 0:01:37]} 33. Nxf3 {[%emt 0:00:07]} gxf3 {[%emt 0:00:04]} 34. Nc1 {[%emt 0:00:28] [#]} Nxh4 $1 {[%emt 0:01:33][%mdl 512]} 35. Nd3 {[%emt 0:03:29][%cal Od3f4]} (35. gxh4 Qg4+ 36. Kf1 Qh3+ 37. Kg1 Kh7 (37... Qxh4 $2 38. Bxf3 Qh3 39. Be4 $18)) (35. Qc3+ Kg8) 35... Ng6 {[%emt 0:00:26]} 36. Qd2 {[%emt 0:00:57] [#]} Bg4 {[%emt 0:01:41]} (36... Bf5 $1 $19 {[%cal Rf5d3] has better winning chances.} 37. Nf4 Nxf4 38. Qxf4 Bg4) 37. Qe3 {[%emt 0:01:47]} (37. Re3 $17) 37... Qh3 {[%emt 0:04:36]} 38. Qe4 {[%emt 0:00:05]} h5 {[%emt 0:02:07]} 39. Re3 {[%emt 0:00:47][%cal Rh1f3]} h4 $2 {[%emt 0:02:27]} (39... Bf5 $17 40. Nf4 Nxf4 41. Qxf4 Bg6) 40. Nf4 $2 {[%emt 0:00:04][%mdl 8192]} (40. Bxf3 $11 Bf5 41. Bg2 Bxe4 42. Bxh3 Bxd3 43. Rxd3) 40... Nxf4 {[%emt 0:00:28]} 41. gxf4 {[%emt 0:00:03]} Kg8 $2 {[%emt 0:00:47]} ({Black should try} 41... Kh8 $19 42. Rxf3 Bxf3 43. Bxf3 Rg7+ 44. Bg2 Qg4 (44... Qxb3 $2 45. Qf5 $19) (44... Rg4 $2 45. Kf1 $19)) 42. Qg6+ $11 {[%emt 0:00:28]} Kf8 {[%emt 0:00:30][%cal Of7g7]} (42... Rg7 $5 43. Qe8+ $8 Kh7 44. Rxe7 Bc8+ 45. Rxg7+ Kxg7 $16) 43. Qh6+ {[%emt 0:00:03]} Ke8 {[%emt 0:00:29]} 44. Qh8+ {[%emt 0:01:57]} (44. Qxd6 Bf5 45. Qe5 (45. Qxb6 $2 Rg7+) (45. Qc6+ $2 Kf8 $19) 45... Qg4+ 46. Kf1 Qxf4 (46... Qh3+ 47. Kg1 $11) 47. Qxf4 Bh3+ 48. Ke1 Rxf4 49. Bxf3 Bf5 $15) (44. f5 $5 Kd8 (44... Bxf5 $2 45. Bxf3 Bc2 46. Bh5 $18) (44... Rxf5 45. Qxd6 Rf7 46. Qe5 $11) 45. f6 Rxf6 46. Qg7 $18) 44... Kd7 {[%emt 0:00:30][%cal Og4h5]} 45. Qg8 {[%emt 0:00:32] Really sharp!} Bh5 $36 {[%emt 0:00:25][%mdl 2048] White is under pressure.} 46. Qg5 {[%emt 0:00:16] Prevents Rf6} Qg4+ {[%emt 0:00:36]} 47. Qxg4+ {[%emt 0:00:01]} Bxg4 {[%emt 0:00:00]} 48. Bxf3 {[%emt 0:00:15]} Rxf4 {[%emt 0:00:28]} 49. Bxg4+ {[%emt 0:00:03]} Rxg4+ $15 {[%emt 0:00:10][%mdl 4096] Endgame KR-KR. Black is a pawn up.} 50. Kh2 {[%emt 0:00:04]} Rf4 {[%emt 0:00:26]} 51. f3 {[%emt 0:00:08]} Rf6 {[%emt 0:01:25]} (51... Rd4 $15) 52. Kh3 $11 {[%emt 0:00:06]} e6 {[%emt 0:00:19]} 53. dxe6+ {[%emt 0:00:17]} Rxe6 {[%emt 0:00:01]} 54. Rxe6 {[%emt 0:03:04]} Kxe6 {[%emt 0:00:01]} 55. Kxh4 {[%emt 0:00:07]} d5 {[%emt 0:00:09]} 56. cxd5+ {[%emt 0:00:07][%mdl 8192] [#]} (56. f4 $11) 56... Kxd5 $2 {[%emt 0:00:01] K3P-K3P} (56... Kd7 $1 $19 {[%cal Ob6b5] and ...b5! should not be overlooked} 57. Kg5 b5 (57... Kd6 $2 58. f4 $18) 58. axb5 c4) 57. f4 {[%emt 0:00:38] The position is equal.} b5 {[%emt 0:00:39]} 58. axb5 {[%emt 0:00:20] Strongly threatening f5.} a4 {[%emt 0:00:53]} 59. bxa4 {[%emt 0:00:40] KP-KP. White is two pawns up.} c4 {[%emt 0:00:01]} 60. a5 {[%emt 0:01:22]} Kc5 {[%emt 0:01:31][%cal Oc4c3] ( -> ...c3!)} 61. b6 {[%emt 0:00:30]} (61. a6 $5 Kb6 $8 62. f5 $11) 61... Kc6 {[%emt 0:00:09] ( -> ...c3)} 62. f5 {[%emt 0:00:14]} c3 {[%emt 0:00:02] ( -> ...c2)} 63. f6 {[%emt 0:00:05]} c2 {[%emt 0:00:08]} 64. f7 {[%emt 0:00:05]} c1=Q {[%emt 0:00:08]} 65. f8=Q {[%emt 0:00:05] White wants to mate with Qc8+. Dodges Qf4+} (65. f8=R Qh6+ 66. Kg3 Qxf8 67. b7 Kxb7 68. Kh3 Kc6 69. Kg3 Kd5 (69... Qa3+ {gets mated.} 70. Kg4 Qxa5 71. Kg3 Qe1+ 72. Kg4 Kd5 73. Kg5 Qe5+ 74. Kh4 Ke4 75. Kg4 Qg7+ 76. Kh4 Kf4 77. Kh5 Qh7#) 70. a6 Ke4 71. a7 Qa3+ 72. Kf2 Qxa7+ 73. Kg2 Qe3 74. Kf1 Qd2 75. Kg1 Kf3 76. Kh1 Qg2#) 65... Qe1+ {[%emt 0:00:30] Weighted Error Value: White=0.35/Black=0.37  Loses game:     	White=3     	---        Missed win:     	---       	Black=1      Mistake:       	White=3     	Black=3      Inaccurate:     	White=5     	Black=4      OK:         	White=23    	Black=18     Best:        	White=5     	Black=3      Strong:       	---       	Black=2      Brilliant:      	---       	Black=1} 1/2-1/2

[Event "FIDE World School-ch O-17 2025"]
[Site "Vrnjacka Banja"]
[Date "2025.03.24"]
[Round "5.3"]
[White "Kazhmuratov, Altair"]
[Black "Milanovic, Marko"]
[Result "1-0"]
[Annotator "TA"]
[ECO "C85"]
[WhiteElo "1971"]
[BlackElo "2271"]
[PlyCount "111"]
[EventDate "2025.03.19"]
[EventType "swiss"]
[EventCountry "SRB"]
[SourceTitle "playchess.com"]
[Source "ChessBase"]
[SourceQuality "1"]
[TimeControl "5400+30"]

{[%evp 14,111,25,22,16,0,0,0,0,0,0,0,4,-13,0,6,0,0,20,20,21,21,24,3,19,16,30,28,30,11,27,-4,-4,0,7,4,12,5,23,22,66,65,55,65,82,93,84,15,24,17,27,36,80,61,77,81,89,12,12,0,0,0,0,0,2,0,0,0,0,0,375,393,381,371,509,503,888,875,687,621,29980,29981,29982,29982,29981,29982,29982,29983,29990,29981,29981,29982,29981,29982,29982,29983,29983,29983,29983,29983]} 1. e4 {[%emt 0:00:05]} e5 {[%emt 0:00:09]} 2. Nf3 {[%emt 0:00:08]} Nc6 {[%emt 0:00:09]} 3. Bb5 {[%emt 0:00:46]} a6 {[%emt 0:00:20]} 4. Ba4 {[%emt 0:00:06]} Nf6 {[%emt 0:00:15]} 5. O-O {[%emt 0:00:06]} Be7 {[%emt 0:00:38]} 6. Bxc6 {[%emt 0:00:10]} dxc6 {[%emt 0:00:55]} 7. d3 {[%emt 0:00:05]} Bd6 {[%emt 0:05:51]} 8. Nbd2 {[%emt 0:00:38][%cal Bb1d2,Bd2f3,Bf3d4][%mdl 32]} Be6 {[%emt 0:05:45] C85: Closed Ruy Lopez: Deferred Exchange Variation.} 9. d4 {[%emt 0:13:06]} Nd7 {[%emt 0:03:34]} 10. Re1 $146 {[%emt 0:00:25]} (10. dxe5 Nxe5 11. Nxe5 Bxe5 12. f4 Bd4+ 13. Kh1 f5 14. Qe2 O-O 15. Nf3 Bf6 16. e5 {0-1 Dragnev,V (2589)-Andersen,M (2612) EU-chT 24th Budva 2023 (9.14)}) 10... Qe7 {[%emt 0:11:00] The position is equal.} 11. dxe5 {[%emt 0:02:14]} Nxe5 {[%emt 0:01:09]} 12. Nxe5 {[%emt 0:01:44]} Bxe5 {[%emt 0:00:04]} 13. Nf3 {[%emt 0:00:03]} Bd6 {[%emt 0:08:13]} 14. e5 {[%emt 0:10:17]} Bc5 {[%emt 0:01:44]} 15. Bg5 {[%emt 0:00:12]} Qd7 {[%emt 0:04:32]} 16. Qe2 {[%emt 0:00:29]} O-O {[%emt 0:04:16]} 17. Rad1 {[%emt 0:01:03]} Qc8 {[%emt 0:01:10]} 18. Nd4 {[%emt 0:06:59]} Bg4 {[%emt 0:06:25] A strong pair of Bishops.} 19. f3 {[%emt 0:01:38]} Bf5 {[%emt 0:00:29]} 20. g4 {[%emt 0:07:21]} Be6 {[%emt 0:05:01]} 21. Kg2 {[%emt 0:03:04]} Re8 {[%emt 0:05:57]} (21... Bxd4 22. Rxd4 b5 23. a3 Re8) 22. a3 {[%emt 0:01:58]} Bd5 {[%emt 0:08:35]} 23. Nf5 {[%emt 0:02:14] [#]} Qe6 {[%emt 0:03:12] Black is weak on the dark squares} 24. Qd2 {[%emt 0:06:29][%cal Oc2c4]} h6 {[%emt 0:03:40]} 25. Bh4 {[%emt 0:02:32]} Qg6 {[%emt 0:03:08]} 26. h3 {[%emt 0:00:59]} (26. Ng3 {simplifies} Qxg4 27. Qxd5 Qxg3+ 28. Bxg3 cxd5 29. Rxd5 Bb6 30. Red1) 26... b5 {[%emt 0:01:48]} 27. Qc3 {[%emt 0:05:53]} Bf8 {[%emt 0:01:15]} 28. Ne3 {[%emt 0:00:20]} Qe6 {[%emt 0:01:51]} 29. Nxd5 {[%emt 0:09:56]} cxd5 {[%emt 0:00:02] [#]} 30. Qd3 {[%emt 0:00:22]} (30. Qxc7 Rac8 31. Qa5 Rxc2+ 32. Rd2 Rec8 $11) (30. f4 $1 $16) 30... g5 $11 {[%emt 0:02:10]} 31. Bg3 {[%emt 0:00:47]} Rad8 {[%emt 0:00:40]} 32. h4 {[%emt 0:01:47]} c5 {[%emt 0:02:55]} 33. hxg5 {[%emt 0:00:32]} hxg5 {[%emt 0:00:35]} 34. Rh1 {[%emt 0:01:27]} Qg6 {[%emt 0:00:25]} 35. Qf5 {[%emt 0:02:18] White is more active.} ({Better is} 35. Rh5 $16) 35... Bg7 {[%emt 0:01:54]} 36. Rde1 {[%emt 0:01:37]} d4 {[%emt 0:01:32]} 37. Rh5 $36 {[%emt 0:01:01][%mdl 2048] White fights for an advantage.} Qxf5 {[%emt 0:00:38]} 38. gxf5 {[%emt 0:00:01]} f6 {[%emt 0:00:22]} 39. e6 {[%emt 0:03:09]} Rd5 {[%emt 0:02:44]} 40. f4 {[%emt 0:02:34]} Rxf5 {[%emt 0:04:00]} 41. Kf3 {[%emt 0:00:12]} g4+ $2 {[%emt 0:01:19][%mdl 8192] White leaves nothing to chance now.} 42. Kxg4 $18 {[%emt 0:00:08]} Rxh5 {[%emt 0:00:04]} 43. Kxh5 {[%emt 0:00:04][%mdl 4096] Endgame KRB-KRB} f5 {[%emt 0:00:59]} 44. Kg6 {[%emt 0:00:31][%cal Og3h4] Strongly threatening Bh4!.} c4 {[%emt 0:00:17]} (44... d3 $142) 45. Bh4 {[%emt 0:02:07]} d3 {[%emt 0:00:28]} 46. cxd3 {[%emt 0:00:08]} Bxb2 {[%emt 0:00:44]} 47. dxc4 {[%emt 0:00:03] White mates.} bxc4 {[%emt 0:00:04]} 48. e7 {[%emt 0:02:09]} Bxa3 {[%emt 0:00:47]} 49. Rd1 {[%emt 0:00:13]} ({Worse is} 49. Kxf5 Kf7 $11) 49... Bxe7 {[%emt 0:00:41]} 50. Bxe7 {[%emt 0:00:08] KRB-KR} Rc8 {[%emt 0:00:32]} 51. Bf6 {[%emt 0:00:35]} Kf8 {[%emt 0:00:28]} 52. Rh1 {[%emt 0:00:28][%cal Rh1h8]} Ke8 {[%emt 0:00:12]} 53. Rh8+ {[%emt 0:00:05]} Kd7 {[%emt 0:00:03]} 54. Rxc8 {[%emt 0:00:09]} Kxc8 {[%emt 0:00:07]} 55. Bc3 {[%emt 0:00:29]} Kd7 {[%emt 0:00:48]} 56. Kxf5 {[%emt 0:00:06] Weighted Error Value: White=0.09 (flawless) /Black=0.40  Loses game:     	---       	Black=1      Mistake:       	White=2     	Black=1      Inaccurate:     	White=1     	Black=3      OK:         	White=17    	Black=14     Best:        	White=3     	Black=2} 1-0